[Event "*** SCC Grand Prix: Titled Tuesday Blitz"]
[Site "Chess.com"]
[Date "2020.10.13"]
[Round "4"]
[White "Kildepiotr"]
[Black "AlexeiShirov"]
[Result "1-0"]
[WhiteElo "2663"]
[BlackElo "2841"]
[TimeControl "180+1"]
[EndTime "10:39:50 PDT"]
[Termination "Kildepiotr won by resignation"]

1. Nf3 {[%clk 0:03:00.9]} 1... d5 {[%clk 0:02:58.9]} 2. g3 {[%clk 0:03:00.5]}
2... g6 {[%clk 0:02:58.6]} 3. Bg2 {[%clk 0:03:00.9]} 3... Bg7 {[%clk 0:02:58.1]}
4. d4 {[%clk 0:03:01.4]} 4... Nf6 {[%clk 0:02:56.4]} 5. O-O {[%clk 0:03:02.3]}
5... O-O {[%clk 0:02:55.4]} 6. c4 {[%clk 0:03:02.8]} 6... c6 {[%clk 0:02:54.2]}
7. cxd5 {[%clk 0:03:00.2]} 7... cxd5 {[%clk 0:02:54.1]} 8. Nc3 {[%clk
0:02:58.6]} 8... Ne4 {[%clk 0:02:52.8]} 9. Nd2 {[%clk 0:02:56.2]} 9... f5 {[%clk
0:02:44.4]} 10. Nf3 {[%clk 0:02:54.5]} 10... Nc6 {[%clk 0:02:43.3]} 11. Bf4
{[%clk 0:02:51.3]} 11... Be6 {[%clk 0:02:37.3]} 12. e3 {[%clk 0:02:43]} 12...
Rc8 {[%clk 0:02:36.8]} 13. Rc1 {[%clk 0:02:32.3]} 13... Qb6 {[%clk 0:02:33.8]}
14. Na4 {[%clk 0:02:29.9]} 14... Qa6 {[%clk 0:02:30.1]} 15. a3 {[%clk
0:02:26.9]} 15... b6 {[%clk 0:02:28.1]} 16. Nc3 {[%clk 0:02:11.5]} 16... Na5
{[%clk 0:02:24.9]} 17. Nxe4 {[%clk 0:02:06.5]} 17... dxe4 {[%clk 0:02:24.3]} 18.
Ne5 {[%clk 0:02:06.4]} 18... Bd5 {[%clk 0:02:17.8]} 19. Qa4 {[%clk 0:01:53.4]}
19... Qb7 {[%clk 0:02:03.6]} 20. Rfe1 {[%clk 0:01:45.4]} 20... Nb3 {[%clk
0:02:00]} 21. Rxc8 {[%clk 0:01:42.9]} 21... Rxc8 {[%clk 0:01:59.1]} 22. Bf1
{[%clk 0:01:41.7]} 22... Nd2 {[%clk 0:01:54.4]} 23. Ba6 {[%clk 0:01:35.6]} 23...
Qa8 {[%clk 0:01:49.9]} 24. Bxc8 {[%clk 0:01:35]} 24... Qxc8 {[%clk 0:01:49.7]}
25. Qd1 {[%clk 0:01:25.2]} 25... Nb3 {[%clk 0:01:47.7]} 26. Qe2 {[%clk
0:01:15.8]} 26... a6 {[%clk 0:01:47.1]} 27. h3 {[%clk 0:01:03]} 27... Bf6 {[%clk
0:01:45.6]} 28. g4 {[%clk 0:01:01.2]} 28... g5 {[%clk 0:01:42.9]} 29. Bh2 {[%clk
0:00:58.4]} 29... f4 {[%clk 0:01:43]} 30. a4 {[%clk 0:00:34.5]} 30... h5 {[%clk
0:01:37.3]} 31. gxh5 {[%clk 0:00:30.1]} 31... f3 {[%clk 0:01:37.2]} 32. Qf1
{[%clk 0:00:29.6]} 32... Nd2 {[%clk 0:01:36.7]} 33. Rc1 {[%clk 0:00:27.9]} 33...
Qf5 {[%clk 0:01:36.6]} 34. Ng4 {[%clk 0:00:23.3]} 34... Nxf1 {[%clk 0:01:34]}
35. Nh6+ {[%clk 0:00:23.1]} 35... Kh7 {[%clk 0:01:30.7]} 36. Nxf5 {[%clk
0:00:24]} 36... Nd2 {[%clk 0:01:29.4]} 37. Rc7 {[%clk 0:00:23.2]} 37... Be6
{[%clk 0:01:26.2]} 38. Nxe7 {[%clk 0:00:22.5]} 38... Kh6 {[%clk 0:01:25.7]} 39.
Be5 {[%clk 0:00:20.4]} 39... Bxe5 {[%clk 0:01:24.5]} 40. dxe5 {[%clk 0:00:21.3]}
40... Bxh3 {[%clk 0:01:24.3]} 41. Ng8+ {[%clk 0:00:21.4]} 41... Kxh5 {[%clk
0:01:24.3]} 42. Rh7+ {[%clk 0:00:21.1]} 42... Kg4 {[%clk 0:01:23.9]} 43. Nf6+
{[%clk 0:00:20.2]} 43... Kf5 {[%clk 0:01:23.8]} 44. Rxh3 {[%clk 0:00:20.8]}
44... Nc4 {[%clk 0:01:23.1]} 45. Nh5 {[%clk 0:00:19.9]} 45... Nxb2 {[%clk
0:01:22.4]} 46. Ng3+ {[%clk 0:00:19.5]} 46... Kxe5 {[%clk 0:01:21.4]} 47. Rh6
{[%clk 0:00:20.1]} 47... Nxa4 {[%clk 0:01:21.1]} 48. Rg6 {[%clk 0:00:19.1]}
48... Nc5 {[%clk 0:01:17.2]} 49. Rxb6 {[%clk 0:00:18]} 49... Kd5 {[%clk
0:01:15.4]} 50. Rg6 {[%clk 0:00:17.3]} 50... a5 {[%clk 0:01:14.7]} 51. Rxg5+
{[%clk 0:00:17.2]} 51... Kc4 {[%clk 0:01:14.7]} 52. Re5 {[%clk 0:00:15.2]} 52...
a4 {[%clk 0:01:11.6]} 53. Nxe4 {[%clk 0:00:15.2]} 53... Nb3 {[%clk 0:01:11.6]}
54. Nd6+ {[%clk 0:00:12.2]} 54... Kb4 {[%clk 0:01:10.9]} 55. Rb5+ {[%clk
0:00:12]} 55... Kc3 {[%clk 0:01:10.5]} 56. Rb8 {[%clk 0:00:07.9]} 56... Nc5
{[%clk 0:01:09.8]} 57. Ra8 {[%clk 0:00:07.3]} 57... Kb4 {[%clk 0:01:09]} 58. Nf5
{[%clk 0:00:03.5]} 58... Nd3 {[%clk 0:01:02.4]} 59. Nd4 {[%clk 0:00:04]} 59...
Ne5 {[%clk 0:01:02.2]} 60. Nc2+ {[%clk 0:00:03.8]} 60... Kb3 {[%clk 0:01:01.9]}
61. Nd4+ {[%clk 0:00:04.7]} 61... Kb4 {[%clk 0:01:01.9]} 62. Rb8+ {[%clk
0:00:04.9]} 62... Kc4 {[%clk 0:01:01.6]} 63. Kf1 {[%clk 0:00:05.7]} 63... a3
{[%clk 0:01:00.5]} 64. Ra8 {[%clk 0:00:06.6]} 64... Kb4 {[%clk 0:01:00]} 65.
Nc2+ {[%clk 0:00:06.8]} 65... Kc3 {[%clk 0:00:59.9]} 66. Nxa3 {[%clk 0:00:07.7]}
1-0

[Event "*** SCC Grand Prix: Titled Tuesday Blitz"]
[Site "Chess.com"]
[Date "2020.10.13"]
[Round "4"]
[White "jamalm2"]
[Black "CM_rui"]
[Result "1/2-1/2"]
[WhiteElo "1787"]
[BlackElo "2357"]
[TimeControl "180+1"]
[EndTime "10:39:54 PDT"]
[Termination "Game drawn by repetition"]

1. d4 {[%clk 0:03:00.6]} 1... Nf6 {[%clk 0:03:00]} 2. Bg5 {[%clk 0:02:56.5]}
2... e6 {[%clk 0:02:59.9]} 3. e4 {[%clk 0:02:54.2]} 3... Be7 {[%clk 0:03:00.3]}
4. f3 {[%clk 0:02:51.8]} 4... O-O {[%clk 0:02:58.2]} 5. Nc3 {[%clk 0:02:50.6]}
5... d6 {[%clk 0:02:58.4]} 6. Qd2 {[%clk 0:02:50.2]} 6... Nbd7 {[%clk
0:02:55.7]} 7. O-O-O {[%clk 0:02:44.2]} 7... e5 {[%clk 0:02:52.2]} 8. d5 {[%clk
0:02:39.3]} 8... Nxd5 {[%clk 0:02:46.3]} 9. Bxe7 {[%clk 0:02:34.4]} 9... Nxe7
{[%clk 0:02:47.2]} 10. g4 {[%clk 0:02:30]} 10... Ng6 {[%clk 0:02:45.5]} 11. Nge2
{[%clk 0:02:26.7]} 11... Qf6 {[%clk 0:02:31.8]} 12. Bg2 {[%clk 0:02:19]} 12...
Nh4 {[%clk 0:02:31.5]} 13. Nd5 {[%clk 0:01:57]} 13... Qd8 {[%clk 0:02:22.9]} 14.
Ng3 {[%clk 0:01:54.6]} 14... c6 {[%clk 0:02:15.1]} 15. Ne3 {[%clk 0:01:53.1]}
15... Qg5 {[%clk 0:01:55.9]} 16. Kb1 {[%clk 0:01:46.5]} 16... Nb6 {[%clk
0:01:47.5]} 17. b3 {[%clk 0:01:34.6]} 17... Rd8 {[%clk 0:01:43.5]} 18. Nef5
{[%clk 0:01:27.1]} 18... Qxd2 {[%clk 0:01:35.1]} 19. Rxd2 {[%clk 0:01:25.1]}
19... Nxg2 {[%clk 0:01:28.1]} 20. Rxg2 {[%clk 0:01:22.7]} 20... Kf8 {[%clk
0:01:22.2]} 21. h4 {[%clk 0:01:21.3]} 21... d5 {[%clk 0:01:20.6]} 22. h5 {[%clk
0:01:15.1]} 22... d4 {[%clk 0:01:16.4]} 23. g5 {[%clk 0:01:12.2]} 23... Be6
{[%clk 0:01:09.9]} 24. h6 {[%clk 0:01:02.3]} 24... g6 {[%clk 0:01:09.6]} 25. Ng7
{[%clk 0:01:01.8]} 25... Ke7 {[%clk 0:01:05]} 26. Rf2 {[%clk 0:00:53.3]} 26...
c5 {[%clk 0:01:00.1]} 27. f4 {[%clk 0:00:52.7]} 27... exf4 {[%clk 0:00:51.7]}
28. Rxf4 {[%clk 0:00:50.7]} 28... c4 {[%clk 0:00:46.5]} 29. Nxe6 {[%clk
0:00:49]} 29... fxe6 {[%clk 0:00:43.2]} 30. e5 {[%clk 0:00:44.3]} 30... Nd5
{[%clk 0:00:38.4]} 31. Rf2 {[%clk 0:00:36.8]} 31... Ne3 {[%clk 0:00:34.9]} 32.
Ne4 {[%clk 0:00:34]} 32... d3 {[%clk 0:00:29.3]} 33. cxd3 {[%clk 0:00:31.2]}
33... cxd3 {[%clk 0:00:29.4]} 34. Rh3 {[%clk 0:00:22.4]} 34... Ng4 {[%clk
0:00:25.3]} 35. Rd2 {[%clk 0:00:20.3]} 35... Nxe5 {[%clk 0:00:25.2]} 36. Nf6
{[%clk 0:00:15.7]} 36... Rh8 {[%clk 0:00:20.2]} 37. Re3 {[%clk 0:00:13.4]} 37...
Kd6 {[%clk 0:00:19]} 38. Ne4+ {[%clk 0:00:12.3]} 38... Kd5 {[%clk 0:00:18.3]}
39. Nf6+ {[%clk 0:00:10.4]} 39... Kd6 {[%clk 0:00:16.4]} 40. Ne4+ {[%clk
0:00:09]} 40... Ke7 {[%clk 0:00:13.9]} 41. Nc5 {[%clk 0:00:07.5]} 41... Kd6
{[%clk 0:00:05.3]} 42. Ne4+ {[%clk 0:00:06.9]} 1/2-1/2

[Event "*** SCC Grand Prix: Titled Tuesday Blitz"]
[Site "Chess.com"]
[Date "2020.10.13"]
[Round "4"]
[White "Morshynska"]
[Black "KerryStead"]
[Result "1-0"]
[WhiteElo "2246"]
[BlackElo "2028"]
[TimeControl "180+1"]
[EndTime "10:39:55 PDT"]
[Termination "Morshynska won on time"]

1. e4 {[%clk 0:03:00.9]} 1... g6 {[%clk 0:02:53.7]} 2. d4 {[%clk 0:03:00.2]}
2... Bg7 {[%clk 0:02:53.8]} 3. Nc3 {[%clk 0:02:58.6]} 3... c6 {[%clk 0:02:53.2]}
4. Nf3 {[%clk 0:02:58.9]} 4... d5 {[%clk 0:02:52.8]} 5. h3 {[%clk 0:02:59]} 5...
h5 {[%clk 0:02:51.5]} 6. Bd3 {[%clk 0:02:48.4]} 6... Nh6 {[%clk 0:02:46.7]} 7.
O-O {[%clk 0:02:42.7]} 7... dxe4 {[%clk 0:02:43.3]} 8. Nxe4 {[%clk 0:02:31.7]}
8... Nd7 {[%clk 0:02:35.6]} 9. Bg5 {[%clk 0:02:22.1]} 9... O-O {[%clk 0:02:33]}
10. Re1 {[%clk 0:02:16.7]} 10... Nf5 {[%clk 0:02:31.2]} 11. c3 {[%clk 0:02:15]}
11... Nf6 {[%clk 0:02:28.2]} 12. Qd2 {[%clk 0:01:40.6]} 12... Be6 {[%clk
0:02:00]} 13. a4 {[%clk 0:01:31.9]} 13... b6 {[%clk 0:01:59.3]} 14. a5 {[%clk
0:01:31.2]} 14... Rb8 {[%clk 0:01:54.7]} 15. Ne5 {[%clk 0:01:21.8]} 15... Nxe4
{[%clk 0:01:48.9]} 16. Bxe4 {[%clk 0:01:15.7]} 16... Bxe5 {[%clk 0:01:44.9]} 17.
dxe5 {[%clk 0:01:16.6]} 17... Qxd2 {[%clk 0:01:44.4]} 18. Bxd2 {[%clk
0:01:17.5]} 18... Bd5 {[%clk 0:01:40.1]} 19. a6 {[%clk 0:01:11.4]} 19... Bxe4
{[%clk 0:01:25.4]} 20. Rxe4 {[%clk 0:01:12.3]} 20... Rbd8 {[%clk 0:01:24.4]} 21.
Bg5 {[%clk 0:01:09.1]} 21... Rd7 {[%clk 0:01:23.5]} 22. b4 {[%clk 0:01:02.9]}
22... e6 {[%clk 0:01:23]} 23. Rc4 {[%clk 0:01:01]} 23... Rc7 {[%clk 0:01:20.5]}
24. Rd1 {[%clk 0:00:57.3]} 24... Rfc8 {[%clk 0:01:19]} 25. g4 {[%clk 0:00:29.3]}
25... hxg4 {[%clk 0:01:16.8]} 26. hxg4 {[%clk 0:00:30.2]} 26... Ne7 {[%clk
0:01:16.6]} 27. Kg2 {[%clk 0:00:19.7]} 27... Nd5 {[%clk 0:01:06.6]} 28. Rh1
{[%clk 0:00:18.9]} 28... c5 {[%clk 0:01:00.7]} 29. b5 {[%clk 0:00:16.9]} 29...
Rd7 {[%clk 0:00:49.6]} 30. Re4 {[%clk 0:00:16.6]} 30... f5 {[%clk 0:00:41.8]}
31. exf6 {[%clk 0:00:14]} 31... Re8 {[%clk 0:00:36.2]} 32. c4 {[%clk 0:00:12.9]}
32... Nb4 {[%clk 0:00:26.3]} 33. Re3 {[%clk 0:00:12.6]} 33... e5 {[%clk
0:00:22.1]} 34. Reh3 {[%clk 0:00:12.1]} 34... Kf7 {[%clk 0:00:22.3]} 35. Rh7+
{[%clk 0:00:11.5]} 35... Ke6 {[%clk 0:00:22.6]} 36. Rxd7 {[%clk 0:00:10.9]}
36... Kxd7 {[%clk 0:00:23.2]} 37. Rh7+ {[%clk 0:00:11.8]} 37... Kd6 {[%clk
0:00:22.1]} 38. Rxa7 {[%clk 0:00:12.3]} 38... Nd3 {[%clk 0:00:19]} 39. Rb7
{[%clk 0:00:11.7]} 39... e4 {[%clk 0:00:12]} 40. f7 {[%clk 0:00:11.4]} 40... Rf8
{[%clk 0:00:11.8]} 41. Bh6 {[%clk 0:00:11.3]} 41... Rxf7 {[%clk 0:00:02.9]} 42.
Rxf7 {[%clk 0:00:12.2]} 1-0

[Event "*** SCC Grand Prix: Titled Tuesday Blitz"]
[Site "Chess.com"]
[Date "2020.10.13"]
[Round "4"]
[White "chenxiaoyuer"]
[Black "tdf98pantani"]
[Result "1-0"]
[WhiteElo "2539"]
[BlackElo "2726"]
[TimeControl "180+1"]
[EndTime "10:39:57 PDT"]
[Termination "chenxiaoyuer won on time"]

1. e4 {[%clk 0:03:00.9]} 1... c6 {[%clk 0:02:59.7]} 2. d4 {[%clk 0:03:00.1]}
2... d5 {[%clk 0:02:59.9]} 3. Nd2 {[%clk 0:03:00.7]} 3... dxe4 {[%clk
0:02:59.7]} 4. Nxe4 {[%clk 0:03:01.6]} 4... Bf5 {[%clk 0:02:59.7]} 5. Ng3 {[%clk
0:03:01.2]} 5... Bg6 {[%clk 0:02:59.8]} 6. h4 {[%clk 0:03:00.9]} 6... h6 {[%clk
0:03:00.1]} 7. Nf3 {[%clk 0:03:00.2]} 7... Nd7 {[%clk 0:02:59.8]} 8. h5 {[%clk
0:03:00.3]} 8... Bh7 {[%clk 0:02:59.8]} 9. Bd3 {[%clk 0:03:00.9]} 9... Bxd3
{[%clk 0:02:59.9]} 10. Qxd3 {[%clk 0:03:01.8]} 10... e6 {[%clk 0:03:00.4]} 11.
Bd2 {[%clk 0:03:02.2]} 11... Ngf6 {[%clk 0:03:00.1]} 12. O-O-O {[%clk
0:03:02.8]} 12... Be7 {[%clk 0:02:59.9]} 13. Ne4 {[%clk 0:03:03.1]} 13... Qb6
{[%clk 0:02:59]} 14. Be3 {[%clk 0:02:37.1]} 14... Ng4 {[%clk 0:02:54.6]} 15. d5
{[%clk 0:02:11.3]} 15... Nxe3 {[%clk 0:02:44.4]} 16. dxe6 {[%clk 0:02:09.9]}
16... Nxd1 {[%clk 0:02:42.5]} 17. exd7+ {[%clk 0:01:35.4]} 17... Kf8 {[%clk
0:02:34.6]} 18. Rxd1 {[%clk 0:01:34.6]} 18... Rd8 {[%clk 0:02:33.4]} 19. Ne5
{[%clk 0:01:31.7]} 19... Qa5 {[%clk 0:02:31.8]} 20. Qd4 {[%clk 0:00:44.8]} 20...
Qxa2 {[%clk 0:02:06.3]} 21. Nd6 {[%clk 0:00:44.4]} 21... Qd5 {[%clk 0:01:21.4]}
22. Qxd5 {[%clk 0:00:40.1]} 22... cxd5 {[%clk 0:01:02.5]} 23. Ndxf7 {[%clk
0:00:39.4]} 23... Bg5+ {[%clk 0:00:59.4]} 24. Kb1 {[%clk 0:00:33.8]} 24... Rxd7
{[%clk 0:00:44.1]} 25. Nxh8 {[%clk 0:00:33.1]} 25... Rd6 {[%clk 0:00:35.9]} 26.
Nhg6+ {[%clk 0:00:32.8]} 26... Ke8 {[%clk 0:00:35.9]} 27. f4 {[%clk 0:00:32.1]}
27... Bf6 {[%clk 0:00:35.9]} 28. Re1 {[%clk 0:00:31.9]} 28... Re6 {[%clk
0:00:30.5]} 29. g4 {[%clk 0:00:26.5]} 29... d4 {[%clk 0:00:27.4]} 30. Kc1 {[%clk
0:00:23.9]} 30... Ra6 {[%clk 0:00:17.8]} 31. Kd2 {[%clk 0:00:21.8]} 31... Kd8
{[%clk 0:00:08.9]} 32. Nd3 {[%clk 0:00:20.8]} 32... Rc6 {[%clk 0:00:05.2]} 33.
Nge5 {[%clk 0:00:20.6]} 33... Rb6 {[%clk 0:00:04.6]} 34. Nc4 {[%clk 0:00:19.7]}
34... Rc6 {[%clk 0:00:04.5]} 35. Nce5 {[%clk 0:00:19.4]} 35... Rb6 {[%clk
0:00:04.6]} 36. Nf3 {[%clk 0:00:19.5]} 36... a5 {[%clk 0:00:04.7]} 37. Re4
{[%clk 0:00:19.4]} 37... Rd6 {[%clk 0:00:02.5]} 38. Nde5 {[%clk 0:00:18.1]}
38... Rd5 {[%clk 0:00:02.3]} 39. Kd3 {[%clk 0:00:17.9]} 39... Rb5 {[%clk
0:00:02.2]} 40. b3 {[%clk 0:00:17.8]} 40... a4 {[%clk 0:00:01.2]} 41. Rxd4+
{[%clk 0:00:17.9]} 41... Kc8 {[%clk 0:00:01.1]} 42. Rxa4 {[%clk 0:00:17.4]}
42... Rd5+ {[%clk 0:00:01.2]} 43. Rd4 {[%clk 0:00:17.3]} 43... Ra5 {[%clk
0:00:01.8]} 44. Nc4 {[%clk 0:00:16.9]} 44... Ra1 {[%clk 0:00:01.8]} 45. Re4
{[%clk 0:00:16.8]} 45... Rf1 {[%clk 0:00:01.5]} 46. Nfd2 {[%clk 0:00:16.3]}
46... Rg1 {[%clk 0:00:01.4]} 47. f5 {[%clk 0:00:16.5]} 47... Rg3+ {[%clk
0:00:01.3]} 48. Re3 {[%clk 0:00:16.2]} 48... Rxg4 {[%clk 0:00:01.2]} 49. Ne4
{[%clk 0:00:16.3]} 1-0

[Event "*** SCC Grand Prix: Titled Tuesday Blitz"]
[Site "Chess.com"]
[Date "2020.10.13"]
[Round "4"]
[White "Vandros57"]
[Black "andresgv36"]
[Result "1-0"]
[WhiteElo "2198"]
[BlackElo "2364"]
[TimeControl "180+1"]
[EndTime "10:39:57 PDT"]
[Termination "Vandros57 won on time"]

1. d4 {[%clk 0:02:59.3]} 1... Nf6 {[%clk 0:01:50.4]} 2. Nf3 {[%clk 0:02:54.8]}
2... d5 {[%clk 0:01:48.9]} 3. c4 {[%clk 0:02:53.5]} 3... c6 {[%clk 0:01:48.7]}
4. e3 {[%clk 0:02:51.8]} 4... Bf5 {[%clk 0:01:48.1]} 5. Bd3 {[%clk 0:02:50.9]}
5... e6 {[%clk 0:01:47.4]} 6. Bxf5 {[%clk 0:02:49]} 6... exf5 {[%clk 0:01:48.3]}
7. cxd5 {[%clk 0:02:48.2]} 7... Nxd5 {[%clk 0:01:47.9]} 8. Nc3 {[%clk
0:02:47.2]} 8... Bb4 {[%clk 0:01:23.9]} 9. O-O {[%clk 0:02:33.2]} 9... O-O
{[%clk 0:01:20.5]} 10. Nxd5 {[%clk 0:02:30.6]} 10... Qxd5 {[%clk 0:01:18.6]} 11.
Bd2 {[%clk 0:02:25.8]} 11... Bd6 {[%clk 0:01:17.9]} 12. b4 {[%clk 0:02:19.9]}
12... Nd7 {[%clk 0:01:16.3]} 13. Qc2 {[%clk 0:02:14.5]} 13... Nf6 {[%clk
0:01:14.5]} 14. Rfc1 {[%clk 0:02:12]} 14... Qe6 {[%clk 0:00:52.6]} 15. Rab1
{[%clk 0:02:07.2]} 15... a6 {[%clk 0:00:51.4]} 16. a4 {[%clk 0:02:05.9]} 16...
Ne4 {[%clk 0:00:39.2]} 17. Be1 {[%clk 0:02:04.3]} 17... Rfe8 {[%clk 0:00:25.8]}
18. g3 {[%clk 0:01:57.9]} 18... g5 {[%clk 0:00:20.5]} 19. b5 {[%clk 0:01:50.8]}
19... axb5 {[%clk 0:00:19.9]} 20. axb5 {[%clk 0:01:49.7]} 20... cxb5 {[%clk
0:00:20.8]} 21. Rxb5 {[%clk 0:01:44.2]} 21... Rec8 {[%clk 0:00:15.3]} 22. Qb1
{[%clk 0:01:39]} 22... Rxc1 {[%clk 0:00:14.8]} 23. Qxc1 {[%clk 0:01:38.1]} 23...
Ra7 {[%clk 0:00:15]} 24. d5 {[%clk 0:01:24]} 24... Qd7 {[%clk 0:00:14]} 25. Rb1
{[%clk 0:01:10.6]} 25... Ba3 {[%clk 0:00:09.7]} 26. Qc4 {[%clk 0:01:05.8]} 26...
Nd6 {[%clk 0:00:07.4]} 27. Qd3 {[%clk 0:00:58.7]} 27... h6 {[%clk 0:00:07.4]}
28. Ne5 {[%clk 0:00:52.6]} 28... Qe8 {[%clk 0:00:06.3]} 29. Bc3 {[%clk
0:00:50.5]} 29... b5 {[%clk 0:00:05.8]} 30. Bd4 {[%clk 0:00:47.4]} 30... Rb7
{[%clk 0:00:04.9]} 31. Nc6 {[%clk 0:00:46.1]} 31... b4 {[%clk 0:00:04.1]} 32. h3
{[%clk 0:00:39.7]} 32... Ne4 {[%clk 0:00:02.8]} 33. Kg2 {[%clk 0:00:34.5]} 33...
Qd7 {[%clk 0:00:03.2]} 34. Bb2 {[%clk 0:00:24]} 34... Rb5 {[%clk 0:00:03.5]} 35.
Bxa3 {[%clk 0:00:20.9]} 35... Rxd5 {[%clk 0:00:03.6]} 36. Qc4 {[%clk 0:00:17.6]}
36... bxa3 {[%clk 0:00:04]} 37. Rf1 {[%clk 0:00:13]} 37... Kf8 {[%clk
0:00:03.2]} 38. Nd4 {[%clk 0:00:12]} 38... Nd2 {[%clk 0:00:03.4]} 39. Qa2 {[%clk
0:00:09.5]} 39... Nxf1 {[%clk 0:00:03.8]} 40. Kxf1 {[%clk 0:00:09.3]} 40... Kg7
{[%clk 0:00:02.3]} 41. Qxa3 {[%clk 0:00:08.6]} 41... f4 {[%clk 0:00:01.9]} 42.
Qc3 {[%clk 0:00:07.8]} 42... Kg6 {[%clk 0:00:01.5]} 43. gxf4 {[%clk 0:00:05]}
43... gxf4 {[%clk 0:00:01.6]} 44. Qd3+ {[%clk 0:00:04.4]} 1-0

[Event "*** SCC Grand Prix: Titled Tuesday Blitz"]
[Site "Chess.com"]
[Date "2020.10.13"]
[Round "4"]
[White "ZverevLev"]
[Black "LedakovAlexandr"]
[Result "0-1"]
[WhiteElo "2317"]
[BlackElo "2472"]
[TimeControl "180+1"]
[EndTime "10:39:58 PDT"]
[Termination "LedakovAlexandr won by checkmate"]

1. e4 {[%clk 0:03:00.9]} 1... Nc6 {[%clk 0:03:00.9]} 2. Nf3 {[%clk 0:02:59.8]}
2... d6 {[%clk 0:02:50.9]} 3. d4 {[%clk 0:02:58.1]} 3... g6 {[%clk 0:02:51.8]}
4. c3 {[%clk 0:02:54.4]} 4... Bg7 {[%clk 0:02:51.5]} 5. Bd3 {[%clk 0:02:53.9]}
5... e5 {[%clk 0:02:51.3]} 6. Be3 {[%clk 0:02:50.8]} 6... Nge7 {[%clk
0:02:46.3]} 7. O-O {[%clk 0:02:48.5]} 7... O-O {[%clk 0:02:46.1]} 8. Nbd2 {[%clk
0:02:45.9]} 8... h6 {[%clk 0:02:45.9]} 9. Re1 {[%clk 0:02:44.9]} 9... Kh7 {[%clk
0:02:45.8]} 10. Nf1 {[%clk 0:02:43.2]} 10... f5 {[%clk 0:02:31.4]} 11. exf5
{[%clk 0:02:35.6]} 11... gxf5 {[%clk 0:02:32.3]} 12. dxe5 {[%clk 0:02:34.9]}
12... dxe5 {[%clk 0:02:31.8]} 13. Bc2 {[%clk 0:02:35.5]} 13... Be6 {[%clk
0:02:21.3]} 14. Ng3 {[%clk 0:02:28.6]} 14... e4 {[%clk 0:02:16.8]} 15. Nd2
{[%clk 0:02:21.4]} 15... Nd5 {[%clk 0:02:09]} 16. Bb3 {[%clk 0:01:50.1]} 16...
f4 {[%clk 0:01:48.7]} 17. Ngxe4 {[%clk 0:01:47]} 17... fxe3 {[%clk 0:01:18.4]}
18. fxe3 {[%clk 0:01:47]} 18... Qe7 {[%clk 0:01:11.3]} 19. Qh5 {[%clk
0:01:41.7]} 19... Ne5 {[%clk 0:01:05.1]} 20. Bc2 {[%clk 0:01:17.9]} 20... Kh8
{[%clk 0:01:01.2]} 21. h3 {[%clk 0:01:11.4]} 21... Rad8 {[%clk 0:00:40.4]} 22.
Ng3 {[%clk 0:00:57.3]} 22... Qg5 {[%clk 0:00:32.7]} 23. Qxg5 {[%clk 0:00:52.4]}
23... hxg5 {[%clk 0:00:33.6]} 24. Nde4 {[%clk 0:00:51.2]} 24... Bh6 {[%clk
0:00:28.9]} 25. Bb3 {[%clk 0:00:49]} 25... b6 {[%clk 0:00:27.9]} 26. Ne2 {[%clk
0:00:45.4]} 26... c5 {[%clk 0:00:21.9]} 27. N4g3 {[%clk 0:00:42.7]} 27... g4
{[%clk 0:00:20.3]} 28. Nf4 {[%clk 0:00:38.7]} 28... Bf7 {[%clk 0:00:13.2]} 29.
Nf5 {[%clk 0:00:26.4]} 29... Nxf4 {[%clk 0:00:10.2]} 30. exf4 {[%clk 0:00:20.9]}
30... Bxf4 {[%clk 0:00:06.6]} 31. Bxf7 {[%clk 0:00:18.9]} 31... Rxf7 {[%clk
0:00:07.5]} 32. Nh4 {[%clk 0:00:18.5]} 32... gxh3 {[%clk 0:00:05.2]} 33. Rxe5
{[%clk 0:00:12.1]} 33... Bxe5 {[%clk 0:00:05]} 34. Ng6+ {[%clk 0:00:12]} 34...
Kh7 {[%clk 0:00:05.2]} 35. Nxe5 {[%clk 0:00:12.2]} 35... Rg7 {[%clk 0:00:05]}
36. Rf1 {[%clk 0:00:09.8]} 36... Rxg2+ {[%clk 0:00:03.3]} 37. Kh1 {[%clk
0:00:10.3]} 37... Rdg8 {[%clk 0:00:04.2]} 38. Nd7 {[%clk 0:00:07.9]} 38... R8g7
{[%clk 0:00:03.9]} 39. Nf6+ {[%clk 0:00:07.5]} 39... Kh6 {[%clk 0:00:04.2]} 40.
Ne4 {[%clk 0:00:07.1]} 40... Rxb2 {[%clk 0:00:03.9]} 41. Nf2 {[%clk 0:00:06.8]}
41... Rg2 {[%clk 0:00:03.6]} 42. Nxh3 {[%clk 0:00:05.5]} 42... Rh2+ {[%clk
0:00:03.8]} 43. Kg1 {[%clk 0:00:06]} 43... Rbg2# {[%clk 0:00:04.7]} 0-1